Cogmind - Beta 13 @@@ ROGUE MODE // 2024.07.30 @ 17:23:41 Player: jimmyl Result: Destroyed by as-05086 with Assembled Blade Performance ------------- Evolutions (0) 0 Regions Visited (4) 800 Robots Destroyed (19) 95 Value Destroyed (362) 362 Prototype IDs (25) 500 Alien Tech Used (0) 0 Bonus (300) 300 TOTAL SCORE: 2057 Bonus ------- Aligned with FarCom 300 Cogmind --------- Core Integrity 0/250 Matter 184/300 Energy 100/100 System Corruption 3% Temperature Cool (0) Movement Walking (190) Ox1 Location -9/Mines Parts ------- > --- POWER (1) -------- (None) > --- PROPULSION (2) --- Carbon-fiber Leg > --- UTILITY (2) ------ Large Storage Unit Melee Analysis Suite > --- WEAPON (2) ------- Mini Grenade Launcher Scythe > --- INVENTORY (15) --- Compact Wheel Cooling System Large Storage Unit Machine Analyzer Experimental Sensor Array ECM Suite Hardened Medium Armor Plating Improved Light Armor Plating Hacking Suite XL Autogun Array Flail Peak State ------------ > --- POWER ------------ Light Angular Momentum Engine > --- PROPULSION ------- Carbon-fiber Leg VSS Leg > --- UTILITY ---------- Large Storage Unit Melee Analysis Suite > --- WEAPON ----------- Particle Cannon Scythe > --- INVENTORY -------- Compact Wheel Cooling System Large Storage Unit Machine Analyzer Experimental Sensor Array ECM Suite Hardened Medium Armor Plating Improved Light Armor Plating Hacking Suite XL Autogun Array Mini Grenade Launcher Flail [Rating: 26] Favorites ----------- Power Light Ion Engine Engine Light Ion Engine Propulsion Light Treads Treads Light Treads Leg Carbon-fiber Leg Wheel Compact Wheel Utility Large Storage Unit Storage Large Storage Unit Processor Transport Network Coupler Weapon Light Assault Rifle Energy Cannon Particle Cannon Ballistic Gun Light Assault Rifle Launcher Mini Grenade Launcher Slashing Weapon Scythe Build | -11 -10 -10 -10 -9 ------- Run | Yrd Mat Min Exi Min Slots Evolved . | . . . . . Power . | . . . . . Propulsion . | . . . . . Utility . | . . . . . Weapon . | . . . . . Parts Attached 19 | 6 2 7 3 1 Power 3 | 1 . 1 1 . Engine 3 | 1 . 1 1 . Core . | . . . . . Reactor . | . . . . . Propulsion 6 | 2 . 3 1 . Treads 2 | 2 . . . . Leg 3 | . . 2 1 . Wheel 1 | . . 1 . . Hover . | . . . . . Flight . | . . . . . Utility 4 | 1 2 1 . . Device . | . . . . . Storage 2 | 1 1 . . . Processor 2 | . 1 1 . . Hackware . | . . . . . Protection . | . . . . . Artifact . | . . . . . Weapon 6 | 2 . 2 1 1 Energy Gun . | . . . . . Energy Cannon 2 | . . 1 1 . Ballistic Gun 2 | 2 . . . . Ballistic Cannon . | . . . . . Launcher 1 | . . . . 1 Special Weapon . | . . . . . Impact Weapon . | . . . . . Slashing Weapon 1 | . . 1 . . Piercing Weapon . | . . . . . Special Melee Weapon . | . . . . . Unidentified Prototypes . | . . . . . Parts Lost 5 | . . 3 . 2 Power 2 | . . 1 . 1 Propulsion 2 | . . 1 . 1 Utility . | . . . . . Weapon 1 | . . 1 . . Highest Loss Streak 3 | . . 3 . 2 To Critical Strikes . | . . . . . Average Slot Usage (%) 91 | . 94 93 87 85 Engine 13 | . 14 13 14 12 Treads 15 | . 28 10 . . Leg 10 | . . 11 28 26 Wheel 1 | . . 5 . . Storage 14 | . 14 14 14 14 Processor 11 | . 8 14 14 14 Energy Cannon 2 | . . 7 2 . Ballistic Gun 15 | . 28 10 . . Slashing Weapon 5 | . . 5 14 14 Naked Turns . | . . . . . Heaviest Build 35 | 11 26 28 35 32 Greatest Support 40 | 40 40 40 27 27 Greatest Overweight (x) 1 | . . 1 1 1 Average Overweight (x) . | . . . . 1 Largest Inventory Capacity 15 | 8 15 15 15 15 Average Capacity 12 | 7 9 15 15 15 Most Carried 15 | 4 10 14 15 15 Average Carried 8 | 2 5 9 14 14 Final Capacity 15 | 8 15 15 15 15 Final Carried 15 | 3 10 14 15 14 Class Distribution -------------------- 100% | Mutant Dominant Class ---------------- Mutant | -10/Materials Mutant | -10/Mines Mutant | -10/Exiles Mutant | -9/Mines Resources | -11 -10 -10 -10 -9 ----------- Run | Yrd Mat Min Exi Min Matter Collected 553 | 226 266 61 . . Remotely . | . . . . . Salvage Created 660 | 82 453 91 . 34 Parts 47 | 1 42 3 . 1 Haulers Intercepted 2 | . 2 . . . Recyclers Shooed . | . . . . . Parts Field Recycled . | . . . . . Retrieved Matter . | . . . . . Parts Self-Destructed . | . . . . . Prevented . | . . . . . Kills | -11 -10 -10 -10 -9 ------- Run | Yrd Mat Min Exi Min Combat Hostiles Destroyed 20 | . 8 2 . 10 Melee 1 | . . . . 1 Guns 10 | . 8 2 . . AOE 9 | . . . . 9 Classes Destroyed 10 | 1 7 . . 2 Worker 1 | . . . . 1 Builder 1 | . 1 . . . Tunneler 1 | . 1 . . . Hauler 2 | . 2 . . . Recycler 1 | 1 . . . . Mechanic 1 | . 1 . . . Watcher 2 | . 2 . . . Swarmer 3 | . 3 . . . Grunt 7 | . 5 2 . . Assembled 10 | . . . . 10 Best Kill Streak 11 | 1 3 1 . 11 Combat Bots Only 10 | . 3 1 . 10 Max Kills in Single Turn 3 | 1 2 1 . 3 Gunslinging . | . . . . . Exploded 3 | . . . . 3 Melee 1 | . . . . 1 Uniques/NPCs Destroyed . | . . . . . Combat | -11 -10 -10 -10 -9 -------- Run | Yrd Mat Min Exi Min Hostile Shots Fired 88 | . 49 14 . 25 Missed 12 | . 5 3 . 4 Damage Taken 1206 | . 576 252 . 378 Core 263 | . 142 34 . 87 Absorbed by Shields . | . . . . . Core Remaining (%) 100 | 100 . . . . Volleys Fired 68 | 3 49 11 . 5 Largest 2 | 2 2 2 . 1 Hottest 88 | 40 40 88 . 30 Shots Fired 130 | 6 99 20 . 5 Gun 119 | 6 99 14 . . Cannon 6 | . . 6 . . Launcher 5 | . . . . 5 Special . | . . . . . Kinetic 119 | 6 99 14 . . Thermal 6 | . . 6 . . Explosive 5 | . . . . 5 Electromagnetic . | . . . . . Robot Hit Streak 10 | 3 8 10 . 2 Robot Miss Streak 3 | 1 3 1 . 3 Penetration Max . | . . . . . Secondary Targets 1 | . 1 . . . Max Gunslinging Chain 1 | . 1 . . . Shots Hit Robots 84 | 4 60 17 . 3 Core Hits 59 | 2 28 5 . 24 Critical Kills 2 | . . 2 . . Critical Parts Destroyed . | . . . . . Critical Strikes 2 | . . 2 . . Destroy 2 | . . 2 . . Melee Attacks 1 | . . . . 1 Impact . | . . . . . Slashing 1 | . . . . 1 Piercing . | . . . . . Sneak Attacks . | . . . . . Combat Hostiles . | . . . . . Follow-up Attacks . | . . . . . Damage Inflicted 1810 | 46 710 205 . 849 Guns 872 | 46 704 122 . . Cannons 83 | . . 83 . . Explosions 809 | . . . . 809 Melee 40 | . . . . 40 Ramming 6 | . 6 . . . Kinetic 872 | 46 704 122 . . Thermal 83 | . . 83 . . Explosive 809 | . . . . 809 Electromagnetic . | . . . . . Impact . | . . . . . Slashing 40 | . . . . 40 Piercing . | . . . . . Highest Corruption 3 | . 2 3 3 3 Average Corruption 2 | . 1 2 3 3 Corruption Purged . | . . . . . Corruption Blocked . | . . . . . Effects 20 | . 7 6 4 3 Message Errors 3 | . 2 . 1 . Matter Fused 4 | . 1 1 1 1 Heat Flow Errors 2 | . . 2 . . Energy Discharges 4 | . 2 2 . . Data Loss (minor) 3 | . 1 . 1 1 Data Loss (major) 2 | . . . 1 1 Misfires 1 | . 1 . . . Weapon Failures 1 | . . 1 . . Overload Shots . | . . . . . Overflow Damage 25 | . . . . 25 Projectiles . | . . . . . Explosions 25 | . . . . 25 Melee . | . . . . . Knockbacks . | . . . . . Impact . | . . . . . Kinetic . | . . . . . Secondary . | . . . . . Self-Inflicted Damage 54 | . . . . 54 Shots 2 | . . . . 2 Rammed 2 | . 2 . . . Targets Rammed 2 | . 2 . . . Kicked . | . . . . . Crushed . | . . . . . Highest Temperature 170 | . 31 170 . 25 Average Temperature 45 | . 14 74 . 16 Received Heat Transfer 373 | . 237 96 . 40 Siege Activations . | . . . . . Robots Corrupted . | . . . . . Combat Hostiles . | . . . . . Parts Fried . | . . . . . Impact Corruptions . | . . . . . Robots Melted . | . . . . . Combat Hostiles . | . . . . . Parts Melted . | . . . . . Heat Transferred 148 | . . 148 . . Parts Sabotaged . | . . . . . Parts Stolen . | . . . . . Parts Stripped . | . . . . . Power Chain Reactions . | . . . . . Alert | -11 -10 -10 -10 -9 ------- Run | Yrd Mat Min Exi Min Peak Influence 193 | 5 193 81 . 12 Initial 46 | . 3 46 . . Average 61 | 1 79 65 . . Maximum Alert Level . | . . . . . Low Security (%) 100 | 100 100 100 . 100 Level 1 . | . . . . . Level 2 . | . . . . . Level 3 . | . . . . . Level 4 . | . . . . . Level 5 . | . . . . . High Security . | . . . . . Max Security . | . . . . . Squads Dispatched 1 | . 1 . . . Investigation 1 | . 1 . . . Extermination . | . . . . . Reinforcement . | . . . . . Assault . | . . . . . Garrison . | . . . . . Intercept . | . . . . . Searches Triggered . | . . . . . Construction Impeded . | . . . . . Haulers Reinforced . | . . . . . Active Scanning Responses . | . . . . . Cargo Convoy Interrupts . | . . . . . Stealth | -11 -10 -10 -10 -9 --------- Run | Yrd Mat Min Exi Min Distress Signals 1 | . 1 . . . Communications Jammed . | . . . . . Distress Signals . | . . . . . Times Spotted 34 | . 16 3 . 15 Peak Tracking Total 15 | . 4 2 . 15 Tactical Retreats 2 | . 1 1 . . Traps | -11 -10 -10 -10 -9 ------- Run | Yrd Mat Min Exi Min Traps Triggered 3 | . 2 1 . . Indirectly . | . . . . . Trap Hack Attempts . | . . . . . Triggered . | . . . . . Disarmed . | . . . . . Reprogrammed . | . . . . . Reused . | . . . . . Traps Extracted . | . . . . . Installed . | . . . . . Triggered . | . . . . . Machines | -11 -10 -10 -10 -9 ---------- Run | Yrd Mat Min Exi Min Machines Disabled . | . . . . . Max in Single Turn . | . . . . . Machines Repaired . | . . . . . Machines Dismantled . | . . . . . Machines Sabotaged . | . . . . . Overloaded Fab Kills . | . . . . . Hacking | -11 -10 -10 -10 -9 --------- Run | Yrd Mat Min Exi Min Machines Accessed 5 | . 3 1 1 . Terminals 3 | . 3 . . . Fabricators . | . . . . . Repair Stations . | . . . . . Recycling Units . | . . . . . Scanalyzers . | . . . . . Garrison Access . | . . . . . Total Hacks 11 | . 9 1 1 . Successful 8 | . 6 1 1 . Failed 3 | . 3 . . . Catastrophic . | . . . . . Database Lockouts . | . . . . . Manual 2 | . 1 . 1 . Terminals 9 | . 9 . . . Fabricators . | . . . . . Repair Stations . | . . . . . Recycling Units . | . . . . . Scanalyzers . | . . . . . Garrison Access . | . . . . . Terminal Hacks 8 | . 6 1 1 . Prototype ID Bank 1 | . 1 . . . Open Door 1 | . . 1 . . Branch Access Points 1 | . 1 . . . Emergency Access Points 2 | . 2 . . . Locate Traps 1 | . 1 . . . Zone Layout 1 | . 1 . . . Derelict Proto ID Bank 1 | . . . 1 . Fabricator Hacks . | . . . . . Repair Station Hacks . | . . . . . Recycling Unit Hacks . | . . . . . Scanalyzer . | . . . . . Garrison Access Hacks . | . . . . . Unauthorized Hacks . | . . . . . Terminals . | . . . . . Fabricators . | . . . . . Repair Stations . | . . . . . Recycling Units . | . . . . . Scanalyzers . | . . . . . Garrison Access . | . . . . . Data Cores Recovered . | . . . . . Used . | . . . . . Hacking Detections 3 | . 3 . . . Full Trace Events 1 | . 1 . . . Feedback Events . | . . . . . Feedback Blocked . | . . . . . Robot Schematics Acquired . | . . . . . Robots Built . | . . . . . Authchips . | . . . . . Time . | . . . . . Total Robot Build Rating . | . . . . . Part Schematics Acquired . | . . . . . Parts Built . | . . . . . Authchips . | . . . . . Time . | . . . . . Total Part Build Rating . | . . . . . Parts Repaired . | . . . . . Time . | . . . . . Parts Recycled . | . . . . . Recycled Matter . | . . . . . Retrieved Matter . | . . . . . Retrieved Components . | . . . . . Parts Scanalyzed . | . . . . . Part Schematics Acquired . | . . . . . Parts Damaged . | . . . . . Bothacking | -11 -10 -10 -10 -9 ------------ Run | Yrd Mat Min Exi Min Used RIF Installer . | . . . . . Robots Hacked . | . . . . . Non-combat . | . . . . . Combat . | . . . . . Robot Hacks Applied . | . . . . . Relay Couplers Released . | . . . . . Fabnet Peak Effective % . | . . . . . Robots Rewired . | . . . . . Allies Hacked . | . . . . . Hacks Repelled . | . . . . . Allies | -11 -10 -10 -10 -9 -------- Run | Yrd Mat Min Exi Min Total Allies . | . . . . . Largest Group . | . . . . . Highest-Rated Group . | . . . . . Highest-Rated Ally . | . . . . . Total Orders . | . . . . . Ally Attacks . | . . . . . Total Damage . | . . . . . Kills . | . . . . . Allies Corrupted . | . . . . . Allies Melted . | . . . . . Intel | -11 -10 -10 -10 -9 ------- Run | Yrd Mat Min Exi Min Robot Analysis Total . | . . . . . Derelict Logs Recovered 2 | . . 1 . 1 Drone Launches . | . . . . . Drone Recoveries . | . . . . . Exploration | -11 -10 -10 -10 -9 ------------- Run | Yrd Mat Min Exi Min Turns Passed 1709 | 138 687 441 350 93 Spaces Moved 941 | 77 309 297 221 37 Core 7 | 7 . . . . Treads 400 | 70 309 21 . . Legs 410 | . . 152 221 37 Wheels 124 | . . 124 . . Hover . | . . . . . Flight . | . . . . . Fastest Speed 50 | 50 160 105 105 185 Average Speed 142 | 150 160 116 141 185 Slowest Speed 240 | 160 160 240 185 185 Overloaded Moves . | . . . . . Propulsion Burnouts . | . . . . . Robots Hopped . | . . . . . Cave-ins Triggered . | . . . . . Exploration Rate (%) 43 | 5 57 76 62 17 Regions Visited 4 Branch Regions 3 Pre-discovered Areas 1 | . . . . 1 Known Exits Taken 1 | . 1 . . . Unknown Exits Taken 3 | 1 . 1 1 . Scrap Searched 1 | . . 1 . . Spaces Dug . | . . . . . Terrain Destroyed 23 | . . . . 23 Melee . | . . . . . Projectile . | . . . . . AOE 23 | . . . . 23 Terrain Rammed . | . . . . . Walls Destroyed . | . . . . . Machines Disabled . | . . . . . Actions | -11 -10 -10 -10 -9 --------- Run | Yrd Mat Min Exi Min Total 1196 | 94 414 374 259 55 Wait 128 | . 40 45 32 11 Move 937 | 76 308 296 220 37 Hop . | . . . . . Pick Up 30 | 9 10 10 1 . Fast Attach . | . . . . . Attach 16 | 6 1 7 1 1 Detach 1 | . . 1 . . Swap 3 | . 1 . 2 . Drop 10 | . 3 4 3 . Fire 68 | 3 49 11 . 5 Melee 1 | . . . . 1 Ram . | . . . . . Kick . | . . . . . Crush 2 | . 2 . . . Escape Stasis . | . . . . . Rewire . | . . . . . Trap . | . . . . . Miscellaneous . | . . . . . Route ------- -11/Scrapyard -10/Materials (discovered 3 exits: [*Mat] / *Min x2) -10/Mines (discovered 2 exits: [*Mat] / *Exi) -10/Exiles -9/Mines History --------- Turn | Location | Event 5 | -11/Scrapyard | Discovered new exit (range 15) 139 | -11/Scrapyard | Entered Materials 310 | -10/Materials | Identified exit to Mines 311 | -10/Materials | Build established: Mutant 688 | -10/Materials | Discovered new exit (range 4) 798 | -10/Materials | Core integrity fell below 50% 826 | -10/Materials | Entered Mines 907 | -10/Mines | Lost 3 parts (1p1n1w) 914 | -10/Mines | Learned Materials trap positions 1038 | -10/Mines | Discovered new exit (range 15) 1081 | -10/Mines | Met a Derelict who couldn't figure out how to use a Trap Extractor 1242 | -10/Mines | Found a damaged Exp. Sensor Array with a note attached 1244 | -10/Mines | Found Prototype Device 1262 | -10/Mines | Deemed a non-threat by the Exiles lab entrance 1262 | -10/Mines | Discovered new exit (range 5) 1267 | -10/Mines | Entered Exiles 1295 | -10/Exiles | Met 8R-AWN 1313 | -10/Exiles | Met EX-HEX 1351 | -10/Exiles | Met EX-BIN 1363 | -10/Exiles | Aligned with FarCom system 1364 | -10/Exiles | Given EX-Vault access code 1389 | -10/Exiles | Opened EX-Vault 1410 | -10/Exiles | Found XL Autogun Array 1453 | -10/Exiles | Warned to stay clear of 0b10 Research branches 1468 | -10/Exiles | Exiles lab attacked by MAIN.C 1591 | -10/Exiles | Discovered new exit (range 10) 1617 | -10/Exiles | Left Exiles lab with XL Autogun Array 1617 | -10/Exiles | Entered Mines 1692 | -9/Mines | Assembled infested the area 1709 | -9/Mines | Core integrity fell below 20% 1710 | -9/Mines | Destroyed by as-05086 with Assembled Blade Last Messages --------------- 01695_ K-01 Serf collects debris. 01698_ as-32994 destroyed. 01698_ as-52489 destroyed. 01700_ K-01 Serf destroyed. 01700_ as-18901 destroyed. 01700_ Destroyed Asb. F-torch. 01700_ VSS Leg destroyed. 01700_ Destroyed VSS Leg. 01702_ Destroyed Asb. Hover Unit. 01702_ as-52026 destroyed. 01702_ as-10183 destroyed. 01704_ System corrupted: Component data lost. 01704_ Destroyed Asb. F-torch. 01704_ as-02332 destroyed. 01704_ Destroyed Asb. Hover Unit. 01706_ Lgt. Angular Momentum Engine destroyed. 01706_ as-99792 destroyed. 01708_ as-94207 destroyed. 01708_ as-61892 destroyed. 01708_ as-43538 destroyed. Map ----- +----------------------------------------------------+ | ??????# #???????????????????????????? | | ??????# #???????????????????????????? | | ??????### ###???????????????????????????? | | ????????# #?????????????????????????????? | | ????????# #?????????????????????????????? | | ???????## #??###????????????????????????? | | ?????### #?? ##???????????????????????? | | ????## #? ######??????????????????? | | ????# ## #??????????????????? | | ????# #?????????????????? | | ????# """ ???????????????? | | ????## """ ?????????????????? | | ?????## """ ?????????????????? | | ??????# ## ?????????????????????? | | ??????## ### #???????????????????????? | | ???????# #####?# #???????????????????????? | | ???????# #?????# #???????????????????????? | | ???????# #?????# #???????????????????????? | | ???????# #?????# #???????????????????????? | | ???????# #?????#a#???????????????????????? | | ???????# #?????# ##########??????????????? | | ???????# ####### ???????????????? | | ???????# #??????????????????????? | | ???????######### ###????????????????????? | | ?????????????# # #???????Y????????????? | | ?????????????# @ #???????Y????????????? | | ????????????# a ##???????????????????? | | ????????????# #???????????????????? | | ????????????# #???????????????????? | | ????????????# % #???????????????????? | | ???????????# ##???????????????????? | | ?????????? #????????????????????? | | ?????????# #????????????????????? | | ?????????# ###????????????????????? | | ????????? a a #??????????????????????? | | ????????# % #???????????????????????? | | ????????# ????????????????????????? | | ????????### ????????????????????????? | | ??????????# ????????????????????????? | | ??????????? ????????????????????????? | | ?????????? ????????????????????????? | | ????????????? ??????????????????????????? | | ?????????????????????????????????????????? | | ?????????????????????????????????????????? | | ?????????????????????????????????????????? | | ?????????????????????????????????????????? | | ?????????????????????????????????????????? | | ?????????????????????????????????????????? | | ?????????????????????????????????????????? | | ?????????????????????????????????????????? | +----------------------------------------------------+ Best States ------------- Heat Dissipation 25 Energy Generation 18 Energy Capacity 150 Matter Stores 300 Matter Capacity 300 Sight Range 16 Terrain Scan Density 10 Evasion (%) 55 Melee Accuracy 5 Recoil Reduction 2 Item Schematics ----------------- None Robot Schematics ------------------ None Fabricated ------------ Nothing Alien Tech Used ----------------- None Achievements -------------- None Challenges ------------ Unstable Evolution Game ------ Seed AlertBeamRegenerator Manual? 0 Play Time 00:11:00 Cumulative 79.4 hours Start 2024.07.30 @ 17:13:21 End 2024.07.30 @ 17:23:41 Sessions 1 Manual Loads 0 Difficulty Rogue Special Mode None Game No. 136 Rogue 136 Adventurer 0 Explorer 0 Win Type - Total 0 Types 0/0/0/0/0/0/0/0/0 Lore% 50 Gallery% 60 Achievement% 44 Wizard Run 0 Options --------- Layout 1 ASCII 0 Keyboard 0 Movement Mouse Keybinds 0 Fullscreen 2 Font 20/SmallcapsGlow Map View 54x42 Zoom Use 0% Tactical HUD 1 Map Filters NONE Filters NONE Steam 0 RUN: fd532051-de33-43c0-901d-8d7e0b6628f4